fUSD/lending_fUSD_20250522
["ID","MTS","AMOUNT","RATE_DAILY","PERIOD"]
[362019800,1747937458272,-547.50165909,0.00035338,5]
[362019802,1747937458283,-420.0,0.00035338,5]
[362019804,1747937458293,-420.0,0.00035338,5]
[362019806,1747937458302,-420.0,0.00035338,5]
[362019808,1747937458312,-420.0,0.00035338,5]
[362019810,1747937458321,-420.0,0.00035338,5]
[362019812,1747937458332,-420.0,0.00035338,5]
[362019814,1747937458341,-420.0,0.00035338,5]
[362019816,1747937458351,-420.0,0.00035338,5]
[362019818,1747937458360,-420.0,0.00035338,5]
[362019820,1747937458370,-420.0,0.00035338,5]
[362019822,1747937458380,-537.85,0.00035338,5]
[362019824,1747937458390,-420.0,0.00035338,5]
[362019826,1747937458399,-420.0,0.00035338,5]
[362019828,1747937458410,-1577.75,0.00035338,5]
[362019830,1747937458420,-420.0,0.00035338,5]
[362019832,1747937458430,-420.0,0.00035338,5]
[362019834,1747937458439,-420.0,0.00035338,5]
[362019836,1747937458448,-1079.12,0.00035338,5]
[362019838,1747937458458,-420.0,0.00035338,5]
[362019840,1747937458468,-420.0,0.00035338,5]
[362019842,1747937458478,-420.0,0.00035338,5]
[362019844,1747937458487,-831.61,0.00035338,5]
[362019847,1747937458497,-420.0,0.00035338,5]
[362019849,1747937458510,-420.0,0.00035338,5]
[362019851,1747937458520,-2312.37,0.00035338,5]
[362019853,1747937458529,-611.84,0.00035338,5]
[362019855,1747937458539,-420.0,0.00035338,5]
[362019857,1747937458549,-249.16530506,0.00035338,5]
[362019859,1747937458558,-420.0,0.00035338,5]
[362019861,1747937458568,-420.0,0.00035338,5]
[362019863,1747937458577,-722.99,0.00035338,5]
[362019865,1747937458586,-420.0,0.00035338,5]
[362019867,1747937458596,-420.0,0.00035338,5]
[362019869,1747937458605,-336.92326941,0.00035338,5]
[362019871,1747937458615,-420.0,0.00035338,5]
[362019873,1747937458624,-280.39084149,0.00035338,5]
[362019875,1747937458634,-1357.38,0.00035338,5]
[362019877,1747937458643,-286.3712147,0.00035338,5]
[362019879,1747937458652,-420.0,0.00035338,5]
[362019881,1747937458662,-420.0,0.00035338,5]
[362019883,1747937458672,-900.0,0.00035339,60]
[362019885,1747937458681,-150.812497,0.00035339,5]
[362019886,1747937458690,-420.0,0.00035339,5]
[362019888,1747937458700,-605.09,0.00035339,5]
[362019890,1747937458709,-460.61,0.00035339,5]
[362019892,1747937458719,-420.0,0.00035339,5]
[362019894,1747937458729,-420.0,0.00035339,5]
[362019896,1747937458739,-4093.55,0.00035339,5]
[362019898,1747937458749,-420.0,0.00035339,5]
[362019900,1747937458759,-420.0,0.00035339,5]
[362019902,1747937458769,-420.0,0.00035339,5]
[362019904,1747937458778,-614.93,0.00035339,5]
[362019906,1747937458788,-529.75,0.00035339,5]
[362019908,1747937458797,-460.73,0.00035339,5]
[362019910,1747937458806,-421.75,0.00035339,5]
[362019912,1747937458816,-420.0,0.00035339,5]
[362019914,1747937458825,-420.0,0.00035339,5]
[362019916,1747937458835,-840.64,0.00035339,5]
[362019918,1747937458845,-420.0,0.00035339,5]
[362019920,1747937458855,-420.0,0.00035339,5]
[362019922,1747937458864,-451.26,0.00035339,5]
[362019924,1747937458874,-420.0,0.00035339,5]
[362019926,1747937458884,-1689.02,0.00035339,5]
[362019928,1747937458894,-420.0,0.00035339,5]
[362019930,1747937458903,-496.50998428,0.00035339,5]
[362019932,1747937458913,-420.0,0.00035339,5]
[362019934,1747937458922,-420.0,0.00035339,5]
[362019936,1747937458931,-671.16,0.00035339,5]
[362019938,1747937458940,-420.0,0.00035339,5]
[362019940,1747937458950,-420.0,0.00035339,5]
[362019942,1747937458960,-420.0,0.00035339,5]
[362019944,1747937458972,-420.0,0.00035339,5]
[362019946,1747937458984,-420.0,0.00035339,5]
[362019948,1747937458993,-421.39,0.00035339,5]
[362019950,1747937459003,-420.0,0.00035339,5]
[362019952,1747937459015,-420.0,0.00035339,5]
[362019955,1747937459024,-1814.1,0.00035339,5]
[362019957,1747937459034,-420.0,0.00035339,5]
[362019959,1747937459044,-420.0,0.00035339,5]
[362019961,1747937459053,-420.0,0.00035339,5]
[362019963,1747937459063,-420.0,0.0003534,5]
[362019965,1747937459073,-420.0,0.0003534,5]
[362019967,1747937459083,-420.0,0.0003534,5]
[362019969,1747937459093,-420.0,0.0003534,5]
[362019971,1747937459102,-1020.2762,0.0003534,2]
[362019973,1747937459112,-420.0,0.0003534,5]
[362019975,1747937459121,-420.0,0.0003534,5]
[362019977,1747937459130,-420.0,0.0003534,5]
[362019979,1747937459139,-420.0,0.0003534,5]
[362019981,1747937459149,-420.0,0.0003534,5]
[362019982,1747937459158,-420.0,0.0003534,5]
[362019983,1747937459167,-420.0,0.0003534,5]
[362019985,1747937459177,-420.0,0.0003534,5]
[362019987,1747937459186,-420.0,0.0003534,5]
[362019989,1747937459195,-420.0,0.0003534,5]
[362019991,1747937459204,-555.97798012,0.0003534,5]
[362019993,1747937459213,-420.0,0.0003534,5]
[362019995,1747937459222,-420.0,0.0003534,5]
[362019997,1747937459232,-420.0,0.0003534,5]
[362019999,1747937459242,-238.68039605,0.0003534,5]
[362020000,1747937459251,-420.0,0.0003534,5]
[362020002,1747937459260,-420.0,0.0003534,5]
[362020004,1747937459270,-420.0,0.0003534,5]
[362020006,1747937459279,-420.0,0.0003534,5]
[362020008,1747937459289,-420.0,0.0003534,5]
[362020010,1747937459298,-420.0,0.0003534,5]
[362020012,1747937459308,-420.0,0.0003534,5]
[362020014,1747937459317,-420.0,0.0003534,5]
[362020016,1747937459326,-529.08,0.0003534,5]
[362020018,1747937459336,-420.0,0.0003534,5]
[362020020,1747937459345,-510.24,0.0003534,5]
[362020021,1747937459355,-420.0,0.0003534,5]
[362020023,1747937459364,-420.0,0.0003534,5]
[362020025,1747937459374,-420.0,0.0003534,5]
[362020027,1747937459384,-1001.341,0.00035341,2]
[362020029,1747937459393,-420.0,0.00035342,14]
[362020031,1747937459404,-1500.0,0.00035368,5]
[362020033,1747937459414,-524.64,0.000354,8]
[362020067,1747937459425,-223.0315306,0.00035418,2]
[362020069,1747937459747,-150.052218,0.00035448,120]
[362020071,1747937459757,-1600.0,0.00035495,7]
[362020072,1747937459767,-500.0,0.00035497,7]
[362020074,1747937459777,-416.26,0.000355,2]
[362020076,1747937459788,-4043.46,0.000355,2]
[362020078,1747937459799,-1000.0,0.000355,2]
[362020080,1747937459810,-5174.48306721,0.00035506,2]
[362020082,1747937459820,-500.0,0.00035508,7]
[362020084,1747937459830,-151.0,0.00035521,7]
[362020086,1747937459840,-1600.0,0.00035533,7]
[362020088,1747937459850,-524.64,0.000356,9]
[362020090,1747937459861,-358.05968749,0.00035611,5]
[362020092,1747937459870,-635.62,0.00035611,5]
[362020094,1747937459880,-420.0,0.00035611,5]
[362020096,1747937459890,-420.0,0.00035611,5]
[362020098,1747937459899,-420.0,0.00035611,5]
[362020100,1747937459909,-420.0,0.00035611,5]
[362020102,1747937459920,-420.0,0.00035611,5]
[362020104,1747937459930,-420.0,0.00035611,5]
[362020106,1747937459940,-420.0,0.00035611,5]
[362020108,1747937459951,-420.0,0.00035611,5]
[362020110,1747937459961,-3537.06,0.00035611,2]
[362020112,1747937459974,-420.0,0.00035611,5]
[362020114,1747937459984,-420.0,0.00035611,5]
[362020116,1747937459993,-420.0,0.00035611,5]
[362020118,1747937460003,-420.0,0.00035612,5]
[362020120,1747937460014,-255.34754808,0.00035612,5]
[362020122,1747937460024,-420.0,0.00035612,5]
[362020124,1747937460033,-420.0,0.00035612,5]
[362020126,1747937460043,-420.0,0.00035612,5]
[362020128,1747937460053,-420.0,0.00035612,5]
[362020129,1747937460063,-420.0,0.00035612,5]
[362020131,1747937460072,-277.57373028,0.00035612,5]
[362020133,1747937460082,-420.0,0.00035612,5]
[362020135,1747937460092,-420.0,0.00035612,5]
[362020137,1747937460102,-266.11141914,0.00035612,5]
[362020139,1747937460111,-420.0,0.00035612,5]
[362020141,1747937460121,-290.81359206,0.00035612,5]
[362020143,1747937460131,-420.0,0.00035612,5]
[362020145,1747937460141,-471.63,0.00035612,5]
[362020147,1747937460151,-420.0,0.00035612,5]
[362020149,1747937460163,-420.0,0.00035612,5]
[362020151,1747937460173,-420.0,0.00035612,5]
[362020153,1747937460183,-420.0,0.00035612,5]
[362020155,1747937460192,-420.0,0.00035612,5]
[362020157,1747937460202,-420.0,0.00035612,5]
[362020159,1747937460211,-420.0,0.00035612,5]
[362020161,1747937460220,-420.0,0.00035612,5]
[362020163,1747937460230,-588.31,0.00035612,5]
[362020165,1747937460240,-420.0,0.00035612,5]
[362020167,1747937460249,-420.0,0.00035612,5]
[362020169,1747937460259,-420.0,0.00035612,5]
[362020171,1747937460268,-420.0,0.00035612,5]
[362020173,1747937460277,-420.0,0.00035612,5]
[362020174,1747937460287,-420.0,0.00035612,5]
[362020176,1747937460297,-420.0,0.00035612,5]
[362020178,1747937460306,-450.18642451,0.00035612,5]
[362020180,1747937460316,-420.0,0.00035612,5]
[362020182,1747937460325,-420.0,0.00035612,5]
[362020184,1747937460335,-420.0,0.00035612,5]
[362020186,1747937460345,-420.0,0.00035612,5]
[362020188,1747937460354,-420.0,0.00035612,5]
[362020190,1747937460363,-420.0,0.00035612,5]
[362020192,1747937460373,-420.0,0.00035612,5]
[362020194,1747937460384,-420.0,0.00035612,5]
[362020196,1747937460393,-420.0,0.00035612,5]
[362020198,1747937460402,-420.0,0.00035612,5]
[362020200,1747937460411,-420.0,0.00035612,5]
[362020202,1747937460420,-420.0,0.00035612,5]
[362020204,1747937460429,-420.0,0.00035612,5]
[362020206,1747937460439,-420.0,0.00035612,5]
[362020208,1747937460448,-420.0,0.00035612,5]
[362020209,1747937460457,-420.0,0.00035612,5]
[362020211,1747937460466,-420.0,0.00035612,5]
[362020213,1747937460476,-420.0,0.00035612,5]
[362020215,1747937460486,-420.0,0.00035612,5]
[362020217,1747937460495,-420.0,0.00035612,5]
[362020219,1747937460505,-420.0,0.00035612,5]
[362020221,1747937460515,-420.0,0.00035612,5]
[362020223,1747937460524,-205.05599953,0.00035612,5]
[362020225,1747937460533,-420.0,0.00035612,5]
[362020227,1747937460543,-1000.0,0.00035612,2]
[362020229,1747937460552,-420.0,0.00035612,5]
[362020231,1747937460562,-420.0,0.00035612,5]
[362020233,1747937460571,-420.0,0.00035612,5]
[362020235,1747937460581,-7658.46,0.00035612,5]
[362020237,1747937460590,-420.0,0.00035612,5]
[362020239,1747937460600,-518.64,0.00035612,5]
[362020241,1747937460609,-420.0,0.00035612,5]
[362020243,1747937460618,-420.0,0.00035612,5]
[362020245,1747937460628,-420.0,0.00035612,5]
[362020247,1747937460638,-420.0,0.00035612,5]
[362020249,1747937460647,-286.91929096,0.00035612,5]
[362020251,1747937460657,-420.0,0.00035612,5]
[362020253,1747937460666,-420.0,0.00035612,5]
[362020255,1747937460675,-420.0,0.00035612,5]
[362020257,1747937460685,-420.0,0.00035612,5]
[362020259,1747937460695,-420.0,0.00035612,5]
[362020261,1747937460704,-1061.71,0.00035612,5]
[362020263,1747937460714,-420.0,0.00035612,5]
[362020265,1747937460724,-420.0,0.00035612,5]
[362020267,1747937460733,-420.0,0.00035612,5]
[362020269,1747937460742,-201.34380856,0.00035612,5]
[362020270,1747937460752,-420.0,0.00035612,5]
[362020272,1747937460761,-420.0,0.00035612,5]
[362020274,1747937460771,-420.0,0.00035612,5]
[362020276,1747937460780,-420.0,0.00035612,5]
[362020278,1747937460790,-420.0,0.00035612,5]
[362020280,1747937460799,-420.0,0.00035612,5]
[362020282,1747937460809,-420.0,0.00035612,5]
[362020284,1747937460819,-537.85,0.00035612,5]
[362020286,1747937460828,-420.0,0.00035612,5]
[362020288,1747937460839,-420.0,0.00035612,5]
[362020290,1747937460849,-1577.75,0.00035612,5]
[362020292,1747937460858,-420.0,0.00035612,5]
[362020294,1747937460869,-420.0,0.00035612,5]
[362020296,1747937460879,-420.0,0.00035612,5]
[362020298,1747937460888,-1079.12,0.00035612,5]
[362020300,1747937460898,-420.0,0.00035612,5]
[362020302,1747937460907,-235.58626513,0.00035612,5]
[362020304,1747937460917,-420.0,0.00035612,5]
[362020306,1747937460927,-831.61,0.00035612,5]
[362020308,1747937460936,-420.0,0.00035612,5]
[362020310,1747937460945,-420.0,0.00035612,5]
[362020312,1747937460956,-2312.37,0.00035612,5]
[362020314,1747937460967,-611.84,0.00035612,5]
[362020316,1747937460979,-420.0,0.00035612,5]
[362020317,1747937460988,-420.0,0.00035612,5]
[362020318,1747937460998,-420.0,0.00035612,5]
[362020319,1747937461008,-722.99,0.00035612,5]
[362020320,1747937461017,-420.0,0.00035612,5]
[362020321,1747937461027,-420.0,0.00035612,5]
[362020322,1747937461037,-420.0,0.00035612,5]
[362020323,1747937461050,-1357.38,0.00035612,5]
[362020324,1747937461060,-420.0,0.00035612,5]
[362020325,1747937461069,-420.0,0.00035612,5]
[362020326,1747937461078,-420.0,0.00035613,5]
[362020327,1747937461088,-605.09,0.00035613,5]
[362020328,1747937461098,-460.61,0.00035613,5]
[362020329,1747937461107,-420.0,0.00035613,5]
[362020330,1747937461117,-420.0,0.00035613,5]
[362020331,1747937461126,-4093.55,0.00035613,5]
[362020332,1747937461136,-420.0,0.00035613,5]
[362020333,1747937461146,-420.0,0.00035613,5]
[362020334,1747937461156,-420.0,0.00035613,5]
[362020335,1747937461165,-614.93,0.00035613,5]
[362020337,1747937461174,-529.75,0.00035613,5]
[362020339,1747937461184,-460.73,0.00035613,5]
[362020341,1747937461194,-421.75,0.00035613,5]
[362020343,1747937461204,-420.0,0.00035613,5]
[362020345,1747937461213,-420.0,0.00035613,5]
[362020347,1747937461223,-840.64,0.00035613,5]
[362020348,1747937461232,-420.0,0.00035613,5]
[362020350,1747937461243,-420.0,0.00035613,5]
[362020352,1747937461253,-451.26,0.00035613,5]
[362020354,1747937461263,-420.0,0.00035613,5]
[362020356,1747937461273,-1689.02,0.00035613,5]
[362020357,1747937461282,-420.0,0.00035613,5]
[362020359,1747937461293,-420.0,0.00035613,5]
[362020361,1747937461302,-420.0,0.00035613,5]
[362020363,1747937461311,-671.16,0.00035613,5]
[362020365,1747937461321,-420.0,0.00035613,5]
[362020367,1747937461331,-420.0,0.00035613,5]
[362020369,1747937461341,-420.0,0.00035613,5]
[362020371,1747937461351,-420.0,0.00035613,5]
[362020373,1747937461361,-420.0,0.00035613,5]
[362020375,1747937461370,-421.39,0.00035613,5]
[362020377,1747937461380,-551.05669023,0.00035613,5]
[362020379,1747937461389,-420.0,0.00035613,5]
[362020381,1747937461399,-1814.1,0.00035613,5]
[362020383,1747937461409,-420.0,0.00035613,5]
[362020385,1747937461418,-420.0,0.00035613,5]
[362020386,1747937461428,-420.0,0.00035613,5]
[362020388,1747937461437,-537.71442127,0.00035614,5]
[362020390,1747937461447,-420.0,0.00035614,5]
[362020392,1747937461456,-420.0,0.00035614,5]
[362020394,1747937461465,-420.0,0.00035614,5]
[362020396,1747937461475,-420.0,0.00035614,5]
[362020398,1747937461486,-420.0,0.00035614,5]
[362020400,1747937461500,-179.15482487,0.00035614,5]
[362020402,1747937461515,-420.0,0.00035614,5]
[362020404,1747937461525,-422.44083443,0.00035614,5]
[362020406,1747937461534,-544.8784004,0.00035614,5]
[362020408,1747937461544,-420.0,0.00035614,5]
[362020410,1747937461553,-151.0,0.00035614,7]
[362020412,1747937461562,-444.85476154,0.00035614,5]
[362020414,1747937461571,-151.0,0.00035614,7]
[362020416,1747937461580,-420.0,0.00035614,5]
[362020418,1747937461589,-420.0,0.00035614,5]
[362020420,1747937461599,-420.0,0.00035614,5]
[362020422,1747937461608,-420.0,0.00035614,5]
[362020424,1747937461617,-420.0,0.00035614,5]
[362020426,1747937461626,-420.0,0.00035614,5]
[362020428,1747937461635,-420.0,0.00035614,5]
[362020430,1747937461645,-420.0,0.00035614,5]
[362020432,1747937461655,-420.0,0.00035614,5]
[362020434,1747937461664,-420.0,0.00035614,5]
[362020435,1747937461674,-420.0,0.00035614,5]
[362020437,1747937461683,-151.0,0.00035614,7]
[362020439,1747937461693,-420.0,0.00035614,5]
[362020441,1747937461702,-420.0,0.00035614,5]
[362020443,1747937461711,-529.08,0.00035614,5]
[362020445,1747937461721,-420.0,0.00035614,5]
[362020447,1747937461730,-420.0,0.00035614,5]
[362020449,1747937461739,-420.0,0.00035614,5]
[362020451,1747937461749,-420.0,0.00035614,5]
[362020453,1747937461758,-474.38277255,0.00035614,7]
[362020455,1747937461768,-430.0,0.00035615,7]
[362020457,1747937461777,-3138.36636927,0.00035615,7]
[362020459,1747937461787,-151.0,0.00035615,7]
[362020461,1747937461797,-420.0,0.00035616,14]
[362020463,1747937461807,-12031.0,0.00035642,5]
[362020465,1747937461816,-500.0,0.00035651,7]
[362020467,1747937461825,-200.0,0.00035693,13]
[362020469,1747937461835,-200.0,0.00035693,13]
[362020471,1747937461844,-200.0,0.00035693,13]
[362020473,1747937461854,-200.0,0.00035693,13]
[362020475,1747937461864,-200.0,0.00035693,13]
[362020477,1747937461873,-200.0,0.00035693,13]
[362020479,1747937461882,-200.0,0.00035693,13]
[362020481,1747937461891,-200.0,0.00035693,13]
[362020483,1747937461900,-200.0,0.00035693,13]
[362020485,1747937461910,-200.0,0.00035693,13]
[362020487,1747937461919,-211.0,0.00035693,13]
[362020489,1747937461928,-200.0,0.00035693,2]
[362020491,1747937461937,-200.0,0.00035693,2]
[362020493,1747937461946,-200.0,0.00035693,2]
[362020495,1747937461956,-200.0,0.00035693,2]
[362020496,1747937461965,-200.0,0.00035693,2]
[362020498,1747937461980,-200.0,0.00035693,2]
[362020500,1747937461989,-200.0,0.00035693,2]
[362020502,1747937461999,-200.0,0.00035693,2]
[362020504,1747937462009,-200.0,0.00035693,2]
[362020507,1747937462019,-200.0,0.00035693,2]
[362020508,1747937462030,-200.0,0.00035693,2]
[362020510,1747937462039,-200.0,0.00035693,2]
[362020512,1747937462051,-200.0,0.00035693,2]
[362020514,1747937462061,-200.0,0.00035693,2]
[362020516,1747937462070,-200.0,0.00035693,2]
[362020518,1747937462079,-200.0,0.00035693,2]
[362020520,1747937462089,-200.0,0.00035693,2]
[362020522,1747937462098,-200.0,0.00035693,2]
[362020530,1747937462168,-200.0,0.00035693,2]
[362020532,1747937462177,-200.0,0.00035693,2]
[362020534,1747937462186,-200.0,0.00035693,2]
[362020536,1747937462195,-200.0,0.00035693,2]
[362020538,1747937462204,-200.0,0.00035693,2]
[362020540,1747937462213,-200.0,0.00035693,2]
[362020542,1747937462223,-200.0,0.00035693,2]
[362020544,1747937462232,-200.0,0.00035693,2]
[362020546,1747937462241,-200.0,0.00035693,2]
[362020548,1747937462250,-200.0,0.00035693,2]
[362020550,1747937462259,-200.0,0.00035693,2]
[362020552,1747937462268,-200.0,0.00035693,2]
[362020554,1747937462276,-200.0,0.00035693,2]
[362020556,1747937462286,-200.0,0.00035693,2]
[362020558,1747937462295,-200.0,0.00035693,2]
[362020560,1747937462304,-200.0,0.00035693,2]
[362020562,1747937462313,-339.0,0.00035693,2]
[362020564,1747937462322,-171.45,0.000357,14]
[362020566,1747937462331,-500.0,0.000357,7]
[362020568,1747937462341,-1049.28,0.000357,9]
[362020570,1747937462351,-500.0,0.00035708,7]
[362020571,1747937462360,-228.48826607,0.00035722,2]
[362020573,1747937462369,-150.052218,0.00035748,120]
[362020575,1747937462379,-500.0,0.00035768,7]
[362020577,1747937462389,-6974.67,0.000358,2]
[362020579,1747937462398,-2174.61,0.000358,2]
[362020581,1747937462407,-500.0,0.00035805,7]
[362020583,1747937462417,-42554.347905,0.00035855,2]
[362020585,1747937462426,-8908.9661021,0.00035863,2]
[362020587,1747937462434,-28756.6265537,0.00035863,2]
[362020589,1747937462444,-7000.0,0.0003588,120]
[362020591,1747937462454,-635.62,0.00035885,5]
[362020593,1747937462463,-420.0,0.00035885,5]
[362020595,1747937462472,-420.0,0.00035885,5]
[362020597,1747937462481,-420.0,0.00035885,5]
[362020599,1747937462491,-420.0,0.00035885,5]
[362020601,1747937462501,-420.0,0.00035885,5]
[362020603,1747937462511,-420.0,0.00035885,5]
[362020604,1747937462520,-420.0,0.00035885,5]
[362020606,1747937462530,-420.0,0.00035885,5]
[362020608,1747937462540,-3537.06,0.00035885,2]
[362020610,1747937462550,-420.0,0.00035885,5]
[362020612,1747937462559,-420.0,0.00035885,5]
[362020614,1747937462569,-420.0,0.00035885,5]
[362020616,1747937462578,-152.959474,0.00035885,5]
[362020618,1747937462587,-420.0,0.00035886,5]
[362020620,1747937462596,-420.0,0.00035886,5]
[362020622,1747937462606,-420.0,0.00035886,5]
[362020624,1747937462615,-420.0,0.00035886,5]
[362020626,1747937462624,-420.0,0.00035886,5]
[362020628,1747937462634,-420.0,0.00035886,5]
[362020630,1747937462643,-420.0,0.00035886,5]
[362020632,1747937462652,-239.7669821,0.00035886,5]
[362020634,1747937462661,-408.07586973,0.00035886,5]
[362020636,1747937462670,-420.0,0.00035886,5]
[362020638,1747937462679,-471.63,0.00035886,5]
[362020640,1747937462688,-419.87687023,0.00035886,5]
[362020642,1747937462697,-420.0,0.00035886,5]
[362020643,1747937462705,-420.0,0.00035886,5]
[362020645,1747937462715,-420.0,0.00035886,5]
[362020647,1747937462723,-420.0,0.00035886,5]
[362020649,1747937462733,-420.0,0.00035886,5]
[362020651,1747937462742,-420.0,0.00035886,5]
[362020653,1747937462751,-420.0,0.00035886,5]
[362020655,1747937462760,-588.31,0.00035886,5]
[362020657,1747937462769,-420.0,0.00035886,5]
[362020659,1747937462779,-403.26603251,0.00035886,5]
[362020661,1747937462788,-420.0,0.00035886,5]
[362020663,1747937462797,-420.0,0.00035886,5]
[362020665,1747937462807,-420.0,0.00035886,5]
[362020667,1747937462817,-420.0,0.00035886,5]
[362020669,1747937462826,-420.0,0.00035886,5]
[362020671,1747937462835,-420.0,0.00035886,5]
[362020673,1747937462845,-420.0,0.00035886,5]
[362020675,1747937462854,-531.18045672,0.00035886,5]
[362020677,1747937462863,-420.0,0.00035886,5]
[362020679,1747937462872,-360.33354298,0.00035886,5]
[362020681,1747937462882,-420.0,0.00035886,5]
[362020683,1747937462892,-420.0,0.00035886,5]
[362020685,1747937462901,-420.0,0.00035886,5]
[362020686,1747937462910,-420.0,0.00035886,5]
[362020688,1747937462919,-420.0,0.00035886,5]
[362020690,1747937462930,-420.0,0.00035886,5]
[362020692,1747937462939,-420.0,0.00035886,5]
[362020694,1747937462949,-420.0,0.00035886,5]
[362020696,1747937462958,-420.0,0.00035886,5]
[362020698,1747937462969,-420.0,0.00035886,5]
[362020700,1747937462981,-420.0,0.00035886,5]
[362020702,1747937462991,-420.0,0.00035886,5]
[362020704,1747937463001,-420.0,0.00035886,5]
[362020706,1747937463010,-420.0,0.00035886,5]
[362020708,1747937463021,-420.0,0.00035886,5]
[362020710,1747937463030,-420.0,0.00035886,5]
[362020712,1747937463040,-189.3621304,0.00035886,5]
[362020714,1747937463050,-1000.0,0.00035886,2]
[362020716,1747937463060,-420.0,0.00035886,5]
[362020718,1747937463070,-383.09079972,0.00035886,5]
[362020720,1747937463079,-290.73061026,0.00035886,5]
[362020722,1747937463089,-7658.46,0.00035886,5]
[362020724,1747937463098,-420.0,0.00035886,5]
[362020726,1747937463108,-518.64,0.00035886,5]
[362020728,1747937463117,-420.0,0.00035886,5]
[362020730,1747937463127,-420.0,0.00035886,5]
[362020732,1747937463137,-420.0,0.00035886,5]
[362020734,1747937463146,-541.36514769,0.00035886,5]
[362020736,1747937463155,-420.0,0.00035886,5]
[362020738,1747937463165,-420.0,0.00035886,5]
[362020740,1747937463174,-420.0,0.00035886,5]
[362020742,1747937463183,-420.0,0.00035886,5]
[362020744,1747937463194,-1061.71,0.00035886,5]
[362020746,1747937463204,-420.0,0.00035886,5]
[362020748,1747937463213,-420.0,0.00035886,5]
[362020750,1747937463223,-420.0,0.00035886,5]
[362020752,1747937463232,-420.0,0.00035886,5]
[362020753,1747937463241,-277.84886139,0.00035886,5]
[362020755,1747937463252,-420.0,0.00035886,5]
[362020757,1747937463262,-420.0,0.00035886,5]
[362020759,1747937463272,-336.44242129,0.00035886,5]
[362020761,1747937463282,-420.0,0.00035886,5]
[362020763,1747937463292,-537.85,0.00035886,5]
[362020765,1747937463302,-420.0,0.00035886,5]
[362020767,1747937463312,-420.0,0.00035886,5]
[362020769,1747937463321,-420.0,0.00035886,5]
[362020771,1747937463330,-1577.75,0.00035886,5]
[362020773,1747937463340,-420.0,0.00035886,5]
[362020775,1747937463349,-565.90767804,0.00035886,5]
[362020777,1747937463359,-420.0,0.00035886,5]
[362020779,1747937463369,-1079.12,0.00035886,5]
[362020781,1747937463378,-420.0,0.00035886,5]
[362020783,1747937463388,-420.0,0.00035886,5]
[362020785,1747937463398,-831.61,0.00035886,5]
[362020787,1747937463407,-420.0,0.00035886,5]
[362020788,1747937463417,-420.0,0.00035886,5]
[362020790,1747937463427,-2312.37,0.00035886,5]
[362020792,1747937463436,-611.84,0.00035886,5]
[362020794,1747937463446,-420.0,0.00035886,5]
[362020796,1747937463455,-420.0,0.00035886,5]
[362020798,1747937463466,-420.0,0.00035886,5]